bitfinex/quotes_ETHUSD_20251119
["timestamp","ask_amount","ask_price","bid_price","bid_amount"]
[1763593959733,0.71030742,3016.3,3015.6,0.90699264]
[1763593960035,0.1,3016.7,3015.7,0.5956]
[1763593960253,0.70996813,3016.6,3015.7,0.5956]
[1763593960430,0.70996813,3016.5,3015.7,0.5956]
[1763593960619,0.1,3016.7,3015.7,0.5956]
[1763593960940,0.70994445,3016.6,3015.7,0.5956]
[1763593961138,0.1,3016.7,3015.7,0.5956]
[1763593961338,0.70974636,3016.6,3015.7,0.5956]
[1763593961639,0.7097442,3016.5,3015.6,0.90699264]
[1763593961838,0.7097442,3016.4,3015.6,0.118]
[1763593962039,0.8772582,3016.6,3015.6,0.118]
[1763593962040,0.7097442,3016.3,3015.6,0.118]
[1763593962239,0.8772582,3016.6,3015.4,0.4776]
[1763593962240,1.0751582,3016.6,3015.5,0.118]
[1763593962441,0.1,3016.7,3015.5,0.118]
[1763593962442,1.58690719,3016.5,3015.5,0.118]
[1763593962740,0.70964899,3016.4,3015.5,0.118]
[1763593962943,0.70964899,3016.3,3015.5,0.118]
[1763593963139,0.8772582,3016.6,3015.5,0.118]
[1763593963360,0.70957392,3016.5,3015.6,0.883104]
[1763593963521,0.102,3016.9,3015.6,0.4776]
[1763593963843,0.70948841,3016.8,3015.9,0.90699264]
[1763593964032,0.102,3016.9,3016.0,0.118]
[1763593964355,0.70924436,3016.8,3016.0,0.118]
[1763593964649,0.102,3016.9,3016.1,0.118]
[1763593964942,0.70921824,3016.8,3016.2,0.118]
[1763593965161,0.8772582,3017.5,3016.2,0.118]
[1763593965317,0.70886331,3017.4,3016.2,0.118]
[1763593965515,0.70886331,3017.3,3016.2,0.118]
[1763593965747,0.70886331,3017.2,3016.2,0.118]
[1763593966056,1.0751582,3017.6,3016.3,6.63064018]
[1763593966544,0.70853041,3017.5,3016.4,1.38459264]
[1763593966742,0.8772582,3017.9,3016.4,1.38459264]
[1763593967049,0.2939,3018.0,3016.5,0.4776]
[1763593967249,0.70796278,3017.9,3016.5,0.4776]
[1763593967416,0.002,3016.9,3016.5,0.4776]
[1763593967923,0.002,3016.9,3016.7,0.90699264]
[1763593968119,0.002,3016.9,3016.8,0.118]
[1763593968621,0.002,3016.9,3016.8,0.5956]
[1763593970218,0.002,3016.9,3016.8,4.81736325]
[1763593970639,0.002,3016.9,3016.8,4.69936325]
[1763593970818,0.002,3016.9,3016.8,4.81736325]
[1763593971152,0.002,3016.9,3016.8,0.90699264]
[1763593971324,0.002,3016.9,3016.1,0.4776]
[1763593971325,0.104,3016.9,3016.2,3.31543001]
[1763593971553,0.002,3016.9,3016.3,0.118]
[1763593971757,0.002,3016.9,3016.3,0.5956]
[1763593972064,0.002,3016.9,3016.3,1.50259264]
[1763593972243,0.002,3016.9,3016.4,3.31521018]
[1763593972583,0.002,3016.9,3016.3,4.22231081]
[1763593972790,0.002,3016.9,3016.4,0.118]
[1763593974039,0.002,3016.9,3016.8,0.4531]
[1763593974242,0.002,3016.9,3016.8,4.36347061]
[1763593974475,0.002,3016.9,3016.8,1.0487]
[1763593974676,0.002,3016.9,3016.8,4.36347061]
[1763593975371,0.002,3016.9,3016.4,0.4776]
[1763593975592,0.002,3016.9,3016.1,0.4776]
[1763593975743,0.002,3016.9,3016.2,0.118]
[1763593975946,0.002,3016.9,3016.3,0.118]
[1763593976173,0.002,3016.9,3015.8,10.85453385]
[1763593976174,0.002,3016.9,3015.8,7.5386641]
[1763593976375,0.002,3016.9,3015.3,6.95316948]
[1763593976376,0.002,3016.9,3016.3,4.22231167]
[1763593976582,0.002,3016.9,3016.4,0.118]
[1763593976880,0.002,3016.9,3016.8,0.4531]
[1763593977083,0.002,3016.9,3016.8,1.0487]
[1763593977583,0.002,3016.9,3016.5,0.4776]
[1763593977756,0.002,3016.9,3016.6,0.118]
[1763593978166,0.002,3016.9,3016.7,0.4776]
[1763593978473,0.002,3016.9,3016.8,4.22176325]
[1763593978844,0.002,3016.9,3016.8,0.90699264]
[1763593979094,0.002,3016.9,3016.8,0.118]
[1763593979781,0.002,3016.9,3016.4,3.31521018]
[1763593979984,0.002,3016.9,3016.5,0.118]
[1763593980495,0.002,3016.9,3016.6,3.31499038]
[1763593980856,0.002,3016.9,3016.8,0.4531]
[1763593981178,0.002,3016.9,3016.8,0.9307]
[1763593981571,0.002,3017.3,3016.8,1.0638477]
[1763593981771,0.002,3017.3,3017.2,8.08546896]
[1763593981969,0.71225572,3018.6,3017.3,0.90699264]
[1763593982172,0.71215667,3018.9,3017.5,0.405504]
[1763593982485,0.2019,3020.1,3018.4,0.90699264]
[1763593982786,0.106,3020.3,3019.1,0.189]
[1763593982998,0.71145694,3020.2,3019.2,0.118]
[1763593983216,0.3079,3020.3,3019.2,0.118]
[1763593983429,0.3079,3020.3,3019.1,0.189]
[1763593983430,0.106,3020.3,3019.1,0.189]
[1763593983587,0.106,3020.3,3019.3,0.118]
[1763593984671,0.2019,3020.2,3019.3,0.118]
[1763593984990,0.2019,3020.2,3019.4,0.118]
[1763593986872,0.108,3020.3,3019.4,0.118]
[1763593987883,0.2019,3020.2,3019.5,0.118]
[1763593988699,0.2019,3020.2,3019.6,0.118]
[1763593989073,0.108,3020.3,3019.6,0.118]
[1763593990074,0.002,3020.3,3019.6,0.5936]
[1763593990505,0.002,3020.3,3019.7,0.117]
[1763593990805,0.002,3020.3,3019.1,0.6646]
[1763593991016,0.002,3020.3,3019.2,0.117]
[1763593991211,0.2019,3020.2,3019.1,0.189]
[1763593992111,0.2019,3020.2,3019.2,0.117]
[1763593992636,0.2019,3020.2,3019.3,0.117]
[1763593993848,0.3079,3019.4,3018.3,0.4756]
[1763593994183,0.1447,3019.2,3018.0,0.189]
[1763593994444,0.1447,3019.2,3018.4,0.117]
[1763593995151,0.1447,3019.2,3018.0,0.6646]
[1763593995353,0.3466,3019.2,3018.0,0.189]
[1763593995647,0.3466,3019.2,3018.1,1.02399264]
[1763593996225,0.3466,3019.2,3018.1,1.49959264]
[1763593996460,0.3466,3019.2,3018.2,3.31323305]
[1763593996461,0.1447,3019.2,3018.2,3.31323305]
[1763593996623,0.106,3019.4,3018.2,3.78883305]
[1763593996822,0.106,3019.4,3018.3,0.4756]
[1763593997505,0.106,3019.6,3018.4,0.90699264]
[1763593997703,0.106,3019.6,3018.5,0.4756]
[1763593998243,0.106,3019.8,3018.5,0.4756]
[1763593998614,0.106,3019.8,3018.7,0.90699264]
[1763593999055,0.106,3019.8,3018.7,1.38259264]
[1763593999222,0.2019,3019.7,3017.9,0.4756]
[1763593999412,0.2019,3019.7,3018.2,0.4756]
[1763593999608,0.2019,3019.7,3018.3,0.03313123]
[1763593999807,0.2019,3019.7,3018.2,0.4756]
[1763594000027,0.2019,3019.7,3018.1,1.02399264]
[1763594000028,0.2019,3019.7,3018.1,0.90699264]
[1763594000207,0.2019,3019.7,3018.3,0.117]
[1763594000405,0.2019,3019.7,3018.1,1.38259264]
[1763594000606,0.2019,3019.7,3018.2,0.5926]
[1763594001511,0.106,3019.8,3018.2,0.5926]
[1763594002246,0.106,3019.8,3018.2,0.6926]
[1763594002604,0.3079,3019.8,3018.4,0.90699264]
[1763594002805,0.3079,3019.8,3018.3,1.38259264]
[1763594003105,0.2019,3019.7,3018.5,0.117]
[1763594003556,0.2019,3019.7,3018.6,0.4756]
[1763594003903,0.2019,3019.7,3018.3,0.90699264]
[1763594004104,0.2019,3019.7,3018.4,0.117]
[1763594004513,0.106,3019.8,3018.6,6.62558802]
[1763594005020,0.106,3019.8,3018.7,0.4756]
[1763594005219,0.106,3019.8,3018.8,0.117]
[1763594005844,0.2019,3019.7,3018.4,3.79446487]
[1763594006134,0.106,3019.8,3018.5,1.02399264]
[1763594006341,0.108,3019.8,3018.6,0.4815]
[1763594006719,0.108,3019.8,3018.7,3.31268426]
[1763594006922,0.108,3019.8,3018.6,3.79424649]
[1763594007237,0.108,3019.8,3018.7,0.5985]
[1763594007755,0.108,3019.8,3018.7,1.50549264]
[1763594008042,0.002,3019.8,3018.7,1.50549264]
[1763594008245,0.002,3019.8,3018.8,0.4815]
[1763594008446,0.002,3019.8,3018.9,0.117]
[1763594008607,0.002,3019.8,3019.0,3.31235508]
[1763594008815,0.002,3019.8,3019.1,0.1875]
[1763594010950,0.002,3019.8,3018.9,3.42946262]
[1763594011152,0.002,3019.8,3018.8,0.4815]
[1763594011356,0.002,3019.8,3018.9,0.117]
[1763594012858,0.2039,3019.8,3019.1,3.31224537]
[1763594013928,0.2039,3019.8,3019.1,6.62449074]
[1763594015058,0.002,3019.8,3019.1,6.81199074]
[1763594015424,0.002,3019.8,3019.2,0.03312135]
[1763594015728,0.002,3019.8,3019.7,0.4695]
[1763594015927,0.002,3019.8,3019.7,0.5865]
[1763594016148,0.002,3019.8,3019.7,1.068]
[1763594016970,0.002,3019.8,3019.7,4.26258724]
[1763594017176,0.002,3019.8,3019.7,4.47958724]
[1763594017362,0.002,3019.8,3019.7,5.82519975]
[1763594017560,0.002,3020.3,3019.7,5.82519975]
[1763594017561,0.002,3020.3,3020.2,0.1]
[1763594017763,0.002,3020.3,3020.2,0.874]
[1763594018075,0.002,3020.7,3020.3,0.1]
[1763594018240,0.002,3020.7,3020.6,1.36489264]
[1763594018442,0.91804791,3022.6,3020.9,0.1]
[1763594018680,0.71214791,3022.7,3021.6,0.1848]
[1763594018845,1.15812247,3023.1,3021.8,3.30928585]
[1763594018846,0.2059,3023.1,3021.8,3.30928585]
[1763594019048,0.2059,3023.0,3021.8,6.6185717]
[1763594019594,0.2059,3023.0,3021.9,0.117]
[1763594020257,0.2059,3023.0,3022.0,0.117]
[1763594020663,0.2059,3023.0,3022.1,0.117]
[1763594021063,0.2059,3022.2,3021.5,3.30951475]
[1763594021393,0.2059,3022.2,3021.2,0.6376]
[1763594021394,0.2059,3022.2,3021.2,6.80463252]
[1763594021587,0.2059,3022.2,3021.3,0.117]
[1763594021588,0.4118,3022.2,3021.3,0.117]
[1763594022001,0.4118,3022.2,3021.4,0.117]
[1763594023067,0.2059,3022.2,3021.5,3.30961442]
[1763594023409,0.2059,3023.0,3021.6,0.4528]
[1763594023608,0.2059,3023.0,3021.1,3.30995467]
[1763594023609,1.88979477,3021.0,3018.0,0.02]
[1763594023909,0.90699264,3018.8,3017.0,3.31454784]
[1763594024200,0.90699264,3018.8,3016.9,0.1848]
[1763594024201,0.405504,3018.8,3016.9,0.1848]
[1763594024405,0.405504,3019.2,3016.9,0.1848]
[1763594024561,0.405504,3019.2,3017.0,0.0331455]
[1763594024757,0.405504,3019.2,3017.2,0.4528]
[1763594024976,0.405504,3019.4,3017.2,0.4528]
[1763594025262,0.405504,3019.4,3017.3,3.31521919]
[1763594025563,0.405504,3019.4,3017.3,0.001]
[1763594026105,0.405504,3019.4,3017.4,0.118]
[1763594026420,0.405504,3019.4,3017.5,0.4528]
[1763594026571,0.405504,3019.5,3017.6,0.03313891]
[1763594026771,1.11353612,3019.5,3017.5,0.4528]
[1763594026970,0.20205288,3019.4,3017.5,0.4528]
[1763594027172,0.20205288,3019.4,3017.6,3.31389183]
[1763594027371,0.405504,3019.9,3017.6,3.31389183]
[1763594027572,1.11338261,3019.9,3017.6,3.31389183]
[1763594028129,1.11338261,3019.9,3017.6,6.62778366]
[1763594028296,1.11338261,3019.9,3017.6,3.31389183]
[1763594029098,0.70787861,3019.9,3017.8,6.62734442]
[1763594029301,0.89144727,3020.5,3017.9,7.9603019]
[1763594029606,0.70742543,3020.6,3017.9,8.4131019]
[1763594029898,0.002,3020.7,3018.0,0.4528]
[1763594030128,0.002,3020.7,3018.0,1.35979264]
[1763594030414,0.002,3020.7,3018.1,0.1848]
[1763594030562,0.002,3020.7,3018.1,0.6376]
[1763594030966,0.002,3020.7,3018.2,0.5698]
[1763594031194,0.002,3020.7,3018.4,6.62602702]
[1763594031400,0.002,3020.7,3018.5,0.117]
[1763594031700,0.002,3020.7,3018.3,3.76591526]
[1763594031908,0.002,3020.7,3018.6,0.117]
[1763594032318,0.002,3020.7,3018.6,0.5698]
[1763594032513,0.002,3020.7,3018.7,0.4528]
[1763594033101,0.002,3020.7,3018.7,3.76547727]
[1763594033613,0.002,3020.7,3018.8,0.4528]
[1763594034306,0.002,3020.7,3018.9,0.117]
[1763594034817,0.002,3020.7,3019.0,0.117]
[1763594035318,0.002,3020.7,3018.7,3.31267278]
[1763594035483,0.002,3020.7,3019.1,0.117]
[1763594035685,0.002,3020.7,3019.1,0.3018]
[1763594036697,0.002,3020.7,3019.1,0.1848]
[1763594037015,0.002,3020.7,3019.2,0.117]
[1763594038311,7.8433019,3019.8,3017.7,0.4528]
[1763594038510,0.78433019,3019.7,3018.2,0.03313233]
[1763594038823,0.405504,3020.1,3018.1,0.6376]
[1763594039129,0.405504,3020.1,3018.2,0.4528]
[1763594039328,0.405504,3020.1,3018.2,0.5698]
[1763594040328,0.002,3020.3,3018.3,0.4528]
[1763594040824,0.002,3020.3,3018.3,1.35979264]
[1763594041325,0.002,3020.3,3018.4,0.4528]
[1763594041488,0.002,3020.3,3018.5,0.117]
[1763594041822,0.002,3020.3,3018.1,0.1848]
[1763594042021,0.002,3020.3,3018.2,1.02399264]
[1763594042421,0.002,3020.3,3018.3,0.4528]
[1763594042628,0.002,3020.3,3018.4,0.03313013]
[1763594042825,0.002,3020.3,3018.3,0.4528]
[1763594043192,0.002,3020.3,3018.4,0.117]
[1763594043393,0.002,3020.3,3018.1,0.1848]
[1763594043394,1.31249664,3020.2,3018.1,0.1848]
[1763594043593,0.405504,3020.0,3018.2,0.117]
[1763594044003,0.405504,3020.0,3017.3,0.001]
[1763594044218,0.91577985,3020.1,3017.6,0.4528]
[1763594044219,1.31249664,3019.7,3017.6,0.4528]
[1763594044796,1.31249664,3019.7,3017.3,0.001]
[1763594044797,1.31249664,3019.2,3017.3,0.001]
[1763594045003,1.31249664,3019.2,3018.3,0.001]
[1763594045328,0.405504,3019.0,3018.3,0.001]
[1763594046295,7.8433019,3018.8,3018.3,0.001]
[1763594046496,1.31249664,3018.7,3018.3,0.001]
[1763594046798,8.59008597,3018.4,3018.3,0.001]
[1763594047764,1.31249664,3018.4,3018.3,0.001]
[1763594048313,2.17150524,3018.4,3018.3,0.001]
[1763594049320,2.87872966,3018.4,3018.3,0.001]
[1763594051622,1.61421706,3018.4,3018.3,0.001]
[1763594051832,0.70722442,3018.4,3018.3,0.001]
[1763594052030,0.70722442,3018.7,3018.3,0.001]
[1763594052255,0.70722442,3018.8,3018.3,0.001]
[1763594052442,0.405504,3018.8,3018.3,0.001]
[1763594052764,0.70722442,3019.0,3018.3,0.001]
[1763594052924,0.70889882,3019.5,3018.3,0.4691]
[1763594053330,0.89144727,3019.5,3018.3,0.001]
[1763594053730,9.04822708,3019.9,3018.3,0.001]
[1763594053731,0.89144727,3019.4,3018.3,0.001]
[1763594054418,0.405504,3019.3,3018.3,0.001]
[1763594055153,1.09203228,3019.2,3018.3,0.001]
[1763594055360,0.405504,3019.1,3018.3,0.001]
[1763594055535,1.11440282,3019.1,3018.3,0.001]
[1763594058872,0.405504,3019.1,3018.3,0.001]
[1763594059025,0.405504,3019.3,3018.3,0.001]
[1763594059227,0.70889882,3019.4,3018.4,0.4681]
[1763594059535,0.405504,3019.5,3018.4,0.4681]
[1763594061672,0.60608901,3019.5,3018.4,0.4681]
[1763594061987,0.20058501,3019.5,3018.4,0.4681]
[1763594062379,0.405504,3019.6,3018.4,0.4681]
[1763594062581,0.405504,3019.5,3018.3,0.001]
[1763594063189,1.11440282,3019.5,3018.3,0.001]
[1763594063352,2.00585009,3019.5,3018.3,0.001]
[1763594063553,0.405504,3019.3,3018.3,0.001]
[1763594063954,0.405504,3019.3,3018.4,0.4681]
[1763594064353,0.405504,3019.3,3018.3,0.001]
[1763594064657,1.11440282,3019.3,3018.3,0.4691]
[1763594064857,0.405504,3019.3,3018.3,0.4691]
[1763594065095,0.405504,3019.3,3018.3,0.001]
[1763594065401,0.3204127,3019.2,3018.3,0.001]
[1763594066251,0.405504,3019.1,3018.3,0.001]
[1763594066465,1.11440282,3019.1,3018.3,0.001]
[1763594066684,0.405504,3019.1,3018.3,0.001]
[1763594067290,1.11440282,3019.1,3018.3,0.001]
[1763594067590,0.405504,3018.9,3018.3,0.001]
[1763594068454,1.11772644,3018.9,3018.3,0.001]
[1763594069096,0.71222244,3018.9,3018.3,0.001]
[1763594069278,0.71222244,3018.8,3018.3,0.001]
[1763594069476,0.405504,3018.8,3018.3,0.001]
[1763594070181,0.71222244,3018.9,3018.3,0.472]
[1763594070695,0.71222244,3018.8,3018.3,0.472]
[1763594070994,0.18351268,3018.8,3018.3,0.472]
[1763594071167,0.89573512,3018.8,3018.3,0.472]
[1763594071367,0.18351268,3018.8,3018.3,0.472]
[1763594071569,0.89573512,3018.8,3018.3,0.472]
[1763594071770,0.71222244,3018.7,3018.3,0.472]
[1763594072382,0.18351268,3018.8,3018.3,0.472]
[1763594072570,0.89573512,3018.8,3018.3,0.472]
[1763594072773,0.71222244,3018.7,3018.3,0.472]
[1763594073383,0.71222244,3018.6,3018.3,0.001]
[1763594073583,0.71222244,3018.5,3018.3,0.001]
[1763594073903,0.71222244,3018.4,3018.3,0.472]
[1763594074210,1.07379073,3018.8,3018.3,0.001]
[1763594074211,0.71222244,3018.7,3018.3,0.001]
[1763594074509,0.71222244,3018.6,3018.3,0.001]
[1763594074711,0.71222244,3018.5,3018.3,0.001]
[1763594074879,0.71222244,3018.4,3018.3,0.001]
[1763594075079,0.71222244,3018.6,3018.3,0.001]
[1763594075283,0.71222244,3018.7,3018.4,0.471]
[1763594075476,0.71222244,3018.9,3018.6,0.4924]
[1763594075781,0.71222244,3018.8,3018.3,0.001]
[1763594075981,0.71222244,3018.7,3018.3,0.001]
[1763594076183,0.71222244,3018.6,3018.3,0.001]
[1763594076383,0.71222244,3018.8,3018.3,0.001]
[1763594076591,0.71222244,3018.7,3018.3,0.472]
[1763594076810,0.71222244,3018.9,3018.3,0.472]
[1763594077010,0.71222244,3018.8,3018.3,0.472]
[1763594077219,0.71222244,3019.0,3018.3,0.472]
[1763594077515,0.71222244,3018.9,3018.7,0.4924]
[1763594077722,0.71222244,3018.9,3018.3,0.472]
[1763594077723,0.71222244,3018.8,3018.3,0.472]
[1763594077914,1.60250049,3019.1,3018.3,0.472]
[1763594078118,0.96317175,3019.0,3018.3,3.78512328]
[1763594078323,0.89027805,3019.7,3019.0,0.4566]
[1763594078525,1.91371248,3019.6,3019.1,0.4566]
[1763594078824,0.71365711,3019.5,3019.1,0.4566]
[1763594079022,0.71365711,3019.4,3019.1,0.4566]
[1763594079200,0.71365711,3019.5,3018.8,0.4775]
[1763594079520,0.71365711,3019.4,3018.8,0.4775]
[1763594079707,0.89027805,3019.6,3018.8,0.4775]
[1763594079708,0.71365711,3019.3,3018.8,0.4775]
[1763594079884,0.71365711,3019.5,3018.8,0.4775]
[1763594080086,0.71365711,3019.4,3018.8,0.4775]
[1763594080285,0.89338418,3019.5,3018.8,0.4775]
[1763594080515,0.71365711,3019.4,3018.8,0.4775]
[1763594081097,0.71365711,3019.3,3018.3,0.001]
[1763594081421,0.71365711,3019.4,3018.5,0.4775]
[1763594081616,0.71365711,3019.3,3018.5,0.4775]
[1763594081819,0.17972707,3019.5,3018.5,0.4775]
[1763594081820,0.71365711,3019.4,3018.5,0.4775]
[1763594081986,0.71365711,3019.3,3018.5,0.4775]
[1763594082191,0.71365711,3019.4,3018.5,0.4775]
[1763594082386,1.02408111,3019.3,3018.5,0.4775]
[1763594082690,1.02408111,3019.2,3018.5,0.4775]
[1763594082892,0.71365711,3019.3,3018.5,0.4775]
[1763594083398,0.71365711,3019.4,3019.2,0.4566]
[1763594083595,0.96474989,3019.4,3019.2,0.4566]
[1763594083901,0.25109278,3019.4,3019.2,0.4566]
[1763594084220,0.71365711,3019.6,3019.2,0.4566]
[1763594084411,1.29578205,3019.7,3019.2,0.4566]
[1763594084412,1.02401298,3019.5,3019.2,0.4566]
[1763594084637,1.02401298,3019.4,3019.2,0.4566]
[1763594084949,0.71365711,3019.5,3018.6,0.4775]
[1763594085248,1.02402025,3019.4,3018.6,0.4775]
[1763594085427,0.71365711,3019.5,3018.6,0.4775]
[1763594085629,1.0240236,3019.4,3018.6,0.4775]
[1763594085943,0.19143017,3019.4,3018.6,0.4775]
[1763594086141,1.2154659,3019.4,3018.6,0.4775]
[1763594086454,1.02403198,3019.3,3018.6,0.4775]
[1763594086610,0.71365711,3019.3,3018.6,0.4775]
[1763594086943,0.71365711,3019.5,3019.2,0.4566]
[1763594087147,1.60393516,3019.7,3019.2,0.4566]
[1763594087328,1.02401822,3019.6,3019.2,0.4566]
[1763594087527,0.31036111,3019.5,3018.3,0.001]
[1763594087837,1.02401822,3019.5,3018.6,0.4775]
[1763594088037,0.71365711,3019.5,3018.6,0.4775]
[1763594088253,0.90508674,3019.6,3019.4,0.4566]
[1763594088438,0.3103181,3019.5,3019.4,0.4566]
[1763594088754,1.02397521,3019.5,3018.3,0.118]
[1763594088967,0.002,3019.9,3019.4,0.4566]
[1763594089128,0.002,3019.9,3019.8,0.4566]
[1763594089530,0.002,3019.9,3019.8,0.9341]
[1763594090644,0.002,3020.3,3019.8,0.9341]
[1763594090954,0.71380326,3021.0,3020.2,0.6487]
[1763594091154,0.71380326,3021.1,3020.2,0.6487]
[1763594091329,0.30973746,3021.0,3020.2,0.6487]
[1763594091656,0.30973746,3021.1,3020.2,1.1262]
[1763594091833,0.19138188,3021.1,3020.2,1.1262]
[1763594092152,0.19138188,3021.1,3020.2,0.6487]
[1763594092352,0.19138188,3021.1,3020.3,0.4775]
[1763594092746,0.19538188,3021.1,3020.2,0.1921]
[1763594093050,0.19138188,3021.1,3020.2,0.1921]
[1763594093254,0.19138188,3021.1,3020.2,0.6696]
[1763594093427,0.19138188,3021.1,3020.3,0.4775]
[1763594093633,0.30905347,3021.2,3020.3,0.4775]
[1763594094051,0.405504,3021.3,3020.3,0.4775]
[1763594094753,1.42836073,3021.3,3020.3,0.4775]
[1763594095051,0.71380326,3021.2,3020.3,0.4775]
[1763594095222,0.405504,3021.3,3020.3,0.4775]
[1763594096159,0.71380326,3021.5,3020.3,0.4775]
[1763594096330,0.89027805,3021.8,3020.3,0.4775]
[1763594096331,0.405504,3021.7,3020.3,0.4775]
[1763594096654,0.89379999,3021.7,3020.3,0.4775]
[1763594096855,0.17972707,3021.7,3020.3,3.78840777]
[1763594097069,0.89027805,3022.4,3020.4,0.4775]
[1763594097272,0.90699264,3021.9,3020.4,0.4775]
[1763594097435,0.405504,3021.8,3020.4,0.5945]
[1763594097635,1.11636302,3021.8,3020.4,0.5945]
[1763594097841,0.405504,3021.8,3020.4,0.5945]
[1763594098036,0.409504,3021.9,3020.4,0.5945]
[1763594098463,0.004,3021.8,3020.4,0.4775]
[1763594098859,0.004,3021.7,3020.4,0.4775]
[1763594099479,0.30831975,3021.8,3020.4,0.4775]
[1763594099778,0.405504,3021.7,3020.4,0.4775]
[1763594099980,0.31231975,3021.8,3020.4,0.4775]
[1763594100137,0.004,3021.8,3020.4,0.4775]
[1763594100340,0.002,3021.3,3020.4,0.4775]
[1763594100562,0.002,3021.3,3020.4,0.5945]
[1763594100766,0.002,3021.3,3021.2,0.6487]
[1763594100995,0.89027805,3022.7,3021.6,0.4566]
[1763594101176,1.15812247,3023.9,3023.4,0.4566]
[1763594101475,0.1902,3024.8,3022.4,6.94904022]
[1763594101673,0.1902,3024.8,3022.5,0.117]
[1763594101839,0.1902,3024.8,3022.9,6.94904022]
[1763594101840,1.01543811,3024.8,3022.9,6.94904022]
[1763594102035,3.10162094,3026.1,3022.5,0.117]
[1763594102036,0.1902,3026.2,3024.7,0.1921]
[1763594102287,0.6793,3026.2,3024.7,0.1921]
[1763594102484,1.21327578,3026.1,3024.5,0.1921]
[1763594102692,1.19042385,3026.0,3024.5,0.1921]
[1763594102839,0.90699264,3025.6,3024.3,0.1921]
[1763594103039,0.6376,3025.9,3024.3,0.1921]
[1763594103324,0.4891,3025.8,3024.4,0.4775]
[1763594103661,0.4891,3025.8,3024.3,0.1921]
[1763594103992,0.1902,3026.2,3024.4,7.42654022]
[1763594104282,0.1902,3026.2,3024.5,0.117]
[1763594104442,0.4891,3026.1,3024.6,0.117]
[1763594104641,0.4891,3026.1,3024.7,0.4775]
[1763594104843,0.1902,3026.5,3024.8,6.94904022]
[1763594105088,0.1902,3026.5,3024.7,0.4775]
[1763594105299,1.15812247,3027.9,3026.4,0.1921]
[1763594105446,6.94904022,3027.0,3025.0,0.1921]
[1763594105641,0.4891,3027.1,3025.1,0.4775]
[1763594105642,0.74381402,3026.9,3025.1,0.4775]
[1763594105851,0.4891,3026.8,3025.1,0.4775]
[1763594106069,0.4891,3026.8,3024.4,10.66098242]
[1763594106070,0.0951,3024.6,3022.5,0.99299113]
[1763594106255,0.0951,3024.6,3020.9,0.1921]
[1763594106256,6.94904022,3023.2,3021.5,0.4775]
[1763594106452,0.71392402,3023.1,3021.6,0.4775]
[1763594106740,0.4891,3024.5,3021.8,6.94904022]
[1763594107095,0.4891,3024.4,3023.0,0.1921]
[1763594107302,0.1902,3025.2,3023.0,0.1921]
[1763594107478,0.1902,3027.0,3025.1,0.1921]
[1763594107804,0.4891,3026.9,3024.7,0.4775]
[1763594108013,6.94904022,3026.8,3024.7,0.4775]
[1763594108162,0.1902,3027.4,3024.7,0.4775]
[1763594108163,1.23031402,3026.7,3024.7,0.4775]
[1763594108366,7.43554022,3026.7,3024.7,0.4775]
[1763594108677,0.1902,3027.4,3024.5,0.1666]
[1763594108678,0.90699264,3026.1,3024.5,0.1666]
[1763594109108,0.6705,3026.0,3024.5,0.1666]
[1763594109278,0.184,3026.5,3024.5,0.62]
[1763594109696,0.4865,3026.4,3024.6,0.4534]
[1763594110915,0.4865,3026.4,3024.6,3.75953908]
[1763594111101,7.43554022,3027.0,3024.6,3.75953908]
[1763594111434,0.4865,3027.0,3024.7,0.4534]
[1763594112009,0.4865,3027.0,3024.7,0.5724]
[1763594112191,0.90699264,3026.5,3024.7,0.5724]
[1763594112384,0.90699264,3026.0,3024.5,0.1666]
[1763594112585,0.90699264,3026.0,3024.2,0.4534]
[1763594112586,0.78560329,3025.9,3024.2,0.4534]
[1763594112781,1.45610329,3025.9,3024.2,0.4534]
[1763594113085,0.90699264,3025.5,3023.7,0.4534]
[1763594113288,0.90699264,3025.0,3023.3,0.4534]
[1763594113587,0.96960329,3024.9,3023.3,0.4534]
[1763594113782,0.184,3024.9,3023.3,0.4534]
[1763594113990,0.4865,3025.3,3023.3,0.4534]
[1763594114184,0.1498,3025.1,3023.3,0.4534]
[1763594114388,0.90699264,3025.0,3023.3,0.4534]
[1763594114603,1.39349264,3025.0,3023.3,0.4534]
[1763594114807,1.33573329,3024.9,3023.3,0.4534]
[1763594115526,0.4865,3024.8,3023.3,0.4534]
[1763594116193,1.31249664,3024.5,3023.0,0.1921]
[1763594116592,1.79899664,3024.5,3023.0,0.1921]
[1763594116788,1.79899664,3024.5,3022.8,0.1863]
[1763594116789,6.94904022,3024.1,3022.5,0.1863]
[1763594116991,1.31249664,3024.0,3022.3,0.4534]
[1763594117204,0.90699264,3023.0,3021.7,0.6397]
[1763594117615,0.405504,3022.8,3021.7,0.1863]
[1763594117933,0.17989966,3022.7,3021.7,0.1863]
[1763594118234,0.405504,3022.6,3020.9,0.4534]
[1763594118393,0.405504,3022.4,3020.9,0.4534]
[1763594118593,0.36389966,3022.7,3021.0,0.03310162]
[1763594118820,0.405504,3022.6,3020.9,0.4534]
[1763594119391,1.31249664,3022.4,3020.6,0.1863]
[1763594119592,1.31249664,3022.4,3020.6,0.6397]
[1763594119792,0.405504,3021.9,3020.4,0.1863]
[1763594120016,1.31249664,3021.6,3020.2,0.4534]
[1763594120234,0.82615369,3021.5,3020.2,0.4534]
[1763594120453,0.184,3020.3,3020.1,0.001]